[Event "Late-Titled-Tuesday-Blitz-February-13-2024"]
[Site "Chess.com"]
[Date "2024.02.13"]
[Round "11"]
[White "temus_galaktionov"]
[Black "FMJoseHerrera"]
[Result "0-1"]
[WhiteElo "2891"]
[BlackElo "2745"]
[TimeControl "180+1"]
[EndTime "16:05:04 PST"]
[Termination "FMJoseHerrera won on time"]

1. d4 {[%clk 0:02:59.6]} 1... Nf6 {[%clk 0:02:59.6]} 2. Nf3 {[%clk 0:02:59.1]}
2... c5 {[%clk 0:02:59.5]} 3. d5 {[%clk 0:02:59.2]} 3... g6 {[%clk 0:02:59.7]}
4. c4 {[%clk 0:02:59.1]} 4... b5 {[%clk 0:02:59.6]} 5. cxb5 {[%clk 0:02:59.2]}
5... a6 {[%clk 0:02:59.9]} 6. bxa6 {[%clk 0:02:59.7]} 6... Bg7 {[%clk
0:02:59.8]} 7. a7 {[%clk 0:02:57.4]} 7... Rxa7 {[%clk 0:02:59.9]} 8. Nc3 {[%clk
0:02:58]} 8... O-O {[%clk 0:03:00]} 9. e4 {[%clk 0:02:57.3]} 9... Qa5 {[%clk
0:02:59.9]} 10. Bd2 {[%clk 0:02:57.3]} 10... Qb6 {[%clk 0:03:00.2]} 11. Qc2
{[%clk 0:02:55.5]} 11... Ba6 {[%clk 0:02:59.1]} 12. Bxa6 {[%clk 0:02:53.9]}
12... Qxa6 {[%clk 0:03:00]} 13. a4 {[%clk 0:02:54]} 13... Rb7 {[%clk 0:02:58.7]}
14. Ra3 {[%clk 0:02:51.9]} 14... Rb4 {[%clk 0:02:56.9]} 15. e5 {[%clk 0:02:41]}
15... Ng4 {[%clk 0:02:55.2]} 16. Nb5 {[%clk 0:02:40]} 16... Nxe5 {[%clk
0:02:48.5]} 17. Bxb4 {[%clk 0:02:39.9]} 17... cxb4 {[%clk 0:02:44.1]} 18. Re3
{[%clk 0:02:32.6]} 18... Rc8 {[%clk 0:02:34.8]} 19. Qd1 {[%clk 0:02:31.2]} 19...
Nc4 {[%clk 0:02:30.6]} 20. Rxe7 {[%clk 0:02:29.2]} 20... Nxb2 {[%clk 0:02:29.9]}
21. Qe2 {[%clk 0:02:07.3]} 21... Rc1+ {[%clk 0:01:55.8]} 22. Kd2 {[%clk
0:02:07.2]} 22... Bh6+ {[%clk 0:01:56.5]} 23. Re3 {[%clk 0:02:07.2]} 23... Rxh1
{[%clk 0:01:53.7]} 24. Kc2 {[%clk 0:02:07]} 24... Qxa4+ {[%clk 0:01:45.7]} 25.
Kxb2 {[%clk 0:02:03.8]} 25... Bg7+ {[%clk 0:01:27.6]} 26. Ne5 {[%clk 0:02:03.9]}
26... Na6 {[%clk 0:01:00.3]} 27. Nd4 {[%clk 0:01:00.2]} 27... Nc5 {[%clk
0:00:55.1]} 28. Nc2 {[%clk 0:00:57.9]} 28... b3 {[%clk 0:00:48.4]} 29. Qc4
{[%clk 0:00:57.8]} 29... Qa2+ {[%clk 0:00:46.5]} 30. Kc3 {[%clk 0:00:57.6]}
30... Qxc2+ {[%clk 0:00:45.3]} 31. Kb4 {[%clk 0:00:58]} 31... d6 {[%clk
0:00:36.1]} 32. Nc6 {[%clk 0:00:30.9]} 32... Qxc4+ {[%clk 0:00:20.9]} 33. Kxc4
{[%clk 0:00:31.8]} 33... Bf6 {[%clk 0:00:20.5]} 34. Re8+ {[%clk 0:00:29.7]}
34... Kg7 {[%clk 0:00:20]} 35. Rb8 {[%clk 0:00:30.6]} 35... b2 {[%clk
0:00:19.5]} 0-1

[Event "Late-Titled-Tuesday-Blitz-February-13-2024"]
[Site "Chess.com"]
[Date "2024.02.13"]
[Round "11"]
[White "Teidi96"]
[Black "ArchibaldCerveza29"]
[Result "1-0"]
[WhiteElo "2298"]
[BlackElo "2472"]
[TimeControl "180+1"]
[EndTime "16:05:09 PST"]
[Termination "Teidi96 won by resignation"]

1. e4 {[%clk 0:03:00.9]} 1... c5 {[%clk 0:02:58.6]} 2. Nf3 {[%clk 0:03:01.3]}
2... Nc6 {[%clk 0:02:57.9]} 3. d4 {[%clk 0:03:01.5]} 3... cxd4 {[%clk
0:02:58.5]} 4. Nxd4 {[%clk 0:03:02.4]} 4... Nf6 {[%clk 0:02:57.2]} 5. Nc3 {[%clk
0:03:02.9]} 5... d6 {[%clk 0:02:57.6]} 6. Bg5 {[%clk 0:03:02.1]} 6... e6 {[%clk
0:02:57.6]} 7. Qd2 {[%clk 0:03:02]} 7... a6 {[%clk 0:02:58]} 8. O-O-O {[%clk
0:02:54.1]} 8... Bd7 {[%clk 0:02:57.8]} 9. f3 {[%clk 0:02:53.4]} 9... Be7 {[%clk
0:02:57.9]} 10. Kb1 {[%clk 0:02:53.2]} 10... Nxd4 {[%clk 0:02:57.6]} 11. Qxd4
{[%clk 0:02:52.5]} 11... Qc7 {[%clk 0:02:58.1]} 12. h4 {[%clk 0:02:52.6]} 12...
h5 {[%clk 0:02:57.8]} 13. Bc4 {[%clk 0:02:45.5]} 13... b5 {[%clk 0:02:57.7]} 14.
Bb3 {[%clk 0:02:46]} 14... a5 {[%clk 0:02:48.6]} 15. a4 {[%clk 0:02:41.8]} 15...
bxa4 {[%clk 0:02:42.1]} 16. Bxa4 {[%clk 0:02:41.1]} 16... Bxa4 {[%clk
0:02:38.2]} 17. Qxa4+ {[%clk 0:02:41]} 17... Kf8 {[%clk 0:02:35.1]} 18. Rd3
{[%clk 0:02:26.7]} 18... Kg8 {[%clk 0:02:19.7]} 19. Rhd1 {[%clk 0:02:24.9]}
19... Kh7 {[%clk 0:02:18.2]} 20. e5 {[%clk 0:01:55.6]} 20... dxe5 {[%clk
0:02:13.4]} 21. Bxf6 {[%clk 0:01:55.8]} 21... gxf6 {[%clk 0:01:56]} 22. Rd7
{[%clk 0:01:50.4]} 22... Qc5 {[%clk 0:01:56]} 23. Ne4 {[%clk 0:01:29.7]} 23...
Qb4 {[%clk 0:01:56.1]} 24. Qxb4 {[%clk 0:01:20.4]} 24... Bxb4 {[%clk 0:01:54.7]}
25. Rxf7+ {[%clk 0:01:20.5]} 25... Kg6 {[%clk 0:01:54.4]} 26. Rxf6+ {[%clk
0:01:20.7]} 26... Kg7 {[%clk 0:01:48.3]} 27. Rd7+ {[%clk 0:01:21.6]} 27... Kg8
{[%clk 0:01:47]} 28. Rff7 {[%clk 0:01:04.7]} 28... Rh6 {[%clk 0:01:37.6]} 29.
Nf6+ {[%clk 0:01:03.9]} 29... Rxf6 {[%clk 0:01:36.7]} 30. Rxf6 {[%clk
0:01:04.8]} 30... a4 {[%clk 0:01:17.8]} 31. Rxe6 {[%clk 0:00:54.5]} 31... a3
{[%clk 0:01:18]} 32. bxa3 {[%clk 0:00:52.1]} 32... Bc3 {[%clk 0:01:13.2]} 33.
Rc6 {[%clk 0:00:48]} 33... Bd4 {[%clk 0:01:12.7]} 34. Ka2 {[%clk 0:00:45.1]}
34... Rb8 {[%clk 0:01:12.1]} 35. a4 {[%clk 0:00:38.5]} 35... Rb2+ {[%clk
0:01:10.5]} 36. Ka3 {[%clk 0:00:38.7]} 36... Rb8 {[%clk 0:01:11]} 37. a5 {[%clk
0:00:38]} 37... Kf8 {[%clk 0:01:06.2]} 38. a6 {[%clk 0:00:35]} 38... Ke8 {[%clk
0:01:03.3]} 39. Rb7 {[%clk 0:00:35.5]} 39... Ra8 {[%clk 0:01:03.2]} 40. Ka4
{[%clk 0:00:34.2]} 40... Bf2 {[%clk 0:00:56.5]} 41. Rh6 {[%clk 0:00:28.9]} 41...
Bc5 {[%clk 0:00:46]} 42. Rh8+ {[%clk 0:00:26.9]} 42... Bf8 {[%clk 0:00:46.2]}
43. Kb5 {[%clk 0:00:27.3]} 43... Rc8 {[%clk 0:00:44.4]} 44. a7 {[%clk
0:00:26.9]} 44... e4 {[%clk 0:00:20.8]} 45. fxe4 {[%clk 0:00:24.9]} 45... Rd8
{[%clk 0:00:21]} 46. Rb8 {[%clk 0:00:23.5]} 1-0

[Event "Late-Titled-Tuesday-Blitz-February-13-2024"]
[Site "Chess.com"]
[Date "2024.02.13"]
[Round "11"]
[White "nindjaxx8"]
[Black "Abduzhaparov"]
[Result "1-0"]
[WhiteElo "2563"]
[BlackElo "2438"]
[TimeControl "180+1"]
[EndTime "16:05:10 PST"]
[Termination "nindjaxx8 won on time"]

1. d4 {[%clk 0:02:49]} 1... d6 {[%clk 0:03:00.9]} 2. c4 {[%clk 0:02:45.7]} 2...
e5 {[%clk 0:03:00.5]} 3. Nc3 {[%clk 0:02:43.7]} 3... exd4 {[%clk 0:02:59.6]} 4.
Qxd4 {[%clk 0:02:44.6]} 4... Nc6 {[%clk 0:02:59.6]} 5. Qd2 {[%clk 0:02:45]} 5...
g6 {[%clk 0:02:59.1]} 6. b3 {[%clk 0:02:45.6]} 6... Bg7 {[%clk 0:02:59.1]} 7.
Bb2 {[%clk 0:02:46.5]} 7... Nf6 {[%clk 0:02:59.1]} 8. Nf3 {[%clk 0:02:45.8]}
8... O-O {[%clk 0:02:58.8]} 9. e3 {[%clk 0:02:44.2]} 9... Qe7 {[%clk 0:02:58.6]}
10. Be2 {[%clk 0:02:42.8]} 10... Bf5 {[%clk 0:02:55.6]} 11. O-O {[%clk
0:02:42.7]} 11... Rfe8 {[%clk 0:02:54.4]} 12. Rad1 {[%clk 0:02:42]} 12... Rad8
{[%clk 0:02:53.6]} 13. Nd5 {[%clk 0:02:40.9]} 13... Nxd5 {[%clk 0:02:50.3]} 14.
cxd5 {[%clk 0:02:41.8]} 14... Ne5 {[%clk 0:02:37.4]} 15. Nd4 {[%clk 0:02:36.2]}
15... Bg4 {[%clk 0:02:31.5]} 16. Bxg4 {[%clk 0:02:32]} 16... Nxg4 {[%clk
0:02:32.4]} 17. h3 {[%clk 0:02:32.7]} 17... Ne5 {[%clk 0:02:19.3]} 18. Rc1
{[%clk 0:02:31.6]} 18... Rc8 {[%clk 0:02:08.1]} 19. Rc2 {[%clk 0:02:31.5]} 19...
c5 {[%clk 0:02:04.2]} 20. dxc6 {[%clk 0:02:30.7]} 20... bxc6 {[%clk 0:01:49.8]}
21. Rfc1 {[%clk 0:02:31]} 21... c5 {[%clk 0:01:48.7]} 22. Nb5 {[%clk 0:02:30.7]}
22... Rcd8 {[%clk 0:01:34.8]} 23. Nc3 {[%clk 0:02:29.8]} 23... Qg5 {[%clk
0:01:26.1]} 24. Qd1 {[%clk 0:02:25.3]} 24... Qf5 {[%clk 0:01:19.4]} 25. Nd5
{[%clk 0:02:21.1]} 25... Nd3 {[%clk 0:01:04.4]} 26. Bxg7 {[%clk 0:02:21.1]}
26... Kxg7 {[%clk 0:00:53.5]} 27. Rd2 {[%clk 0:01:59.2]} 27... Nxc1 {[%clk
0:00:49.6]} 28. Qxc1 {[%clk 0:02:00.1]} 28... Re5 {[%clk 0:00:47.1]} 29. Qc3
{[%clk 0:01:57.5]} 29... f6 {[%clk 0:00:40.4]} 30. Nc7 {[%clk 0:01:47.1]} 30...
Rd7 {[%clk 0:00:30.6]} 31. Nb5 {[%clk 0:01:41.1]} 31... Rd5 {[%clk 0:00:28.4]}
32. Rxd5 {[%clk 0:01:25.1]} 32... Qxd5 {[%clk 0:00:29.3]} 33. a4 {[%clk
0:01:25.5]} 33... a6 {[%clk 0:00:25.2]} 34. Na3 {[%clk 0:01:23.5]} 34... Rb7
{[%clk 0:00:21.6]} 35. Nc4 {[%clk 0:00:56.1]} 35... Qd1+ {[%clk 0:00:20.9]} 36.
Kh2 {[%clk 0:00:56.2]} 36... d5 {[%clk 0:00:21.5]} 37. Nd6 {[%clk 0:00:53.1]}
37... Qxb3 {[%clk 0:00:08.7]} 38. Qxc5 {[%clk 0:00:50.8]} 38... Rd7 {[%clk
0:00:05.3]} 39. Qc6 {[%clk 0:00:45.6]} 39... Re7 {[%clk 0:00:03]} 40. Nc8 {[%clk
0:00:40.2]} 40... Qb8+ {[%clk 0:00:02.5]} 41. Nd6 {[%clk 0:00:25.4]} 41... Re6
{[%clk 0:00:01.9]} 42. Qd7+ {[%clk 0:00:25]} 1-0

[Event "Late-Titled-Tuesday-Blitz-February-13-2024"]
[Site "Chess.com"]
[Date "2024.02.13"]
[Round "11"]
[White "Rinqed222"]
[Black "a_kandil"]
[Result "1-0"]
[WhiteElo "2315"]
[BlackElo "2477"]
[TimeControl "180+1"]
[EndTime "16:05:10 PST"]
[Termination "Rinqed222 won by checkmate"]

1. e4 {[%clk 0:03:00.9]} 1... e5 {[%clk 0:02:59.4]} 2. Nf3 {[%clk 0:03:00.9]}
2... Nc6 {[%clk 0:02:59.4]} 3. Bc4 {[%clk 0:03:01.3]} 3... Bc5 {[%clk
0:02:59.3]} 4. c3 {[%clk 0:03:01.4]} 4... Nf6 {[%clk 0:02:59.3]} 5. d4 {[%clk
0:03:01.8]} 5... exd4 {[%clk 0:03:00.2]} 6. e5 {[%clk 0:03:02.5]} 6... d5 {[%clk
0:03:00]} 7. Bb5 {[%clk 0:03:02.9]} 7... Ne4 {[%clk 0:02:59.4]} 8. cxd4 {[%clk
0:03:03.4]} 8... Bb6 {[%clk 0:03:00]} 9. Nc3 {[%clk 0:02:57.5]} 9... O-O {[%clk
0:02:54.1]} 10. Be3 {[%clk 0:02:56.2]} 10... Bg4 {[%clk 0:02:50.9]} 11. Qc2
{[%clk 0:02:54.7]} 11... Bf5 {[%clk 0:02:47.1]} 12. Qb3 {[%clk 0:02:51.1]} 12...
Na5 {[%clk 0:02:40.7]} 13. Qxd5 {[%clk 0:02:41.4]} 13... Qxd5 {[%clk 0:02:39.4]}
14. Nxd5 {[%clk 0:02:41.4]} 14... c6 {[%clk 0:02:37.7]} 15. Nxb6 {[%clk
0:02:41.5]} 15... axb6 {[%clk 0:02:38.6]} 16. Be2 {[%clk 0:02:36.1]} 16... Rfd8
{[%clk 0:02:34.2]} 17. b4 {[%clk 0:02:27.9]} 17... Nb3 {[%clk 0:02:32.8]} 18.
Rb1 {[%clk 0:02:20.3]} 18... Nbd2 {[%clk 0:02:31.7]} 19. Nxd2 {[%clk 0:01:48.5]}
19... Nxd2 {[%clk 0:02:30]} 20. Kxd2 {[%clk 0:01:49.1]} 20... Rxa2+ {[%clk
0:02:28.9]} 21. Kc3 {[%clk 0:01:26.8]} 21... Bxb1 {[%clk 0:02:26.7]} 22. Bc4
{[%clk 0:01:24]} 22... Rc2+ {[%clk 0:02:08.4]} 23. Kb3 {[%clk 0:01:23.8]} 23...
b5 {[%clk 0:01:57.7]} 24. Bd3 {[%clk 0:01:21.9]} 24... Rc1 {[%clk 0:01:57.7]}
25. Bxh7+ {[%clk 0:01:15.3]} 25... Bxh7 {[%clk 0:01:55.6]} 26. Rxc1 {[%clk
0:01:15.1]} 26... Ra8 {[%clk 0:01:55.4]} 27. d5 {[%clk 0:01:05.4]} 27... cxd5
{[%clk 0:01:49.9]} 28. Rc7 {[%clk 0:01:05]} 28... Bd3 {[%clk 0:01:45.5]} 29.
Rxb7 {[%clk 0:00:55.3]} 29... Bc4+ {[%clk 0:01:45.5]} 30. Kb2 {[%clk 0:00:48.4]}
30... Ra2+ {[%clk 0:01:42]} 31. Kb1 {[%clk 0:00:48.7]} 31... Re2 {[%clk
0:01:37.2]} 32. Re7 {[%clk 0:00:26.9]} 32... Kh7 {[%clk 0:01:32.4]} 33. Bc5
{[%clk 0:00:16.9]} 33... Kg6 {[%clk 0:01:31]} 34. g3 {[%clk 0:00:13.7]} 34...
Rd2 {[%clk 0:01:31]} 35. Rd7 {[%clk 0:00:12.5]} 35... Kf5 {[%clk 0:01:23.2]} 36.
Rxf7+ {[%clk 0:00:12.4]} 36... Kxe5 {[%clk 0:01:23.3]} 37. Rxg7 {[%clk
0:00:11.7]} 37... d4 {[%clk 0:01:22.9]} 38. Re7+ {[%clk 0:00:11.9]} 38... Kf5
{[%clk 0:01:20.2]} 39. Rd7 {[%clk 0:00:11.1]} 39... d3 {[%clk 0:01:17.6]} 40.
Be3 {[%clk 0:00:10.5]} 40... Re2 {[%clk 0:01:17.4]} 41. Kc1 {[%clk 0:00:10.5]}
41... Ke4 {[%clk 0:01:15.7]} 42. Rd4+ {[%clk 0:00:10.2]} 42... Kf3 {[%clk
0:01:14.9]} 43. Rf4+ {[%clk 0:00:09.4]} 43... Kg2 {[%clk 0:01:15]} 44. h4 {[%clk
0:00:09.9]} 44... Rc2+ {[%clk 0:01:13.1]} 45. Kd1 {[%clk 0:00:09.9]} 45... Kf1
{[%clk 0:01:12.8]} 46. h5 {[%clk 0:00:09.7]} 46... Re2 {[%clk 0:00:57]} 47. h6
{[%clk 0:00:09.3]} 47... Bb3+ {[%clk 0:00:56.8]} 48. Kc1 {[%clk 0:00:09.8]}
48... Ke1 {[%clk 0:00:55.9]} 49. h7 {[%clk 0:00:09.3]} 49... Rxe3 {[%clk
0:00:55.7]} 50. h8=Q {[%clk 0:00:07.1]} 50... d2+ {[%clk 0:00:55.7]} 51. Kb2
{[%clk 0:00:07.6]} 51... Re2 {[%clk 0:00:53.9]} 52. Qh1# {[%clk 0:00:07.5]} 1-0

[Event "Late-Titled-Tuesday-Blitz-February-13-2024"]
[Site "Chess.com"]
[Date "2024.02.13"]
[Round "11"]
[White "Quattroporte300"]
[Black "ChEsper99"]
[Result "1-0"]
[WhiteElo "2418"]
[BlackElo "2211"]
[TimeControl "180+1"]
[EndTime "16:05:10 PST"]
[Termination "Quattroporte300 won on time"]

1. e4 {[%clk 0:02:57.7]} 1... c6 {[%clk 0:02:52.3]} 2. d4 {[%clk 0:02:57.3]}
2... d5 {[%clk 0:02:52.8]} 3. Nc3 {[%clk 0:02:57.9]} 3... dxe4 {[%clk
0:02:52.7]} 4. Nxe4 {[%clk 0:02:58.8]} 4... Nf6 {[%clk 0:02:53.4]} 5. Nxf6+
{[%clk 0:02:58.5]} 5... exf6 {[%clk 0:02:53.9]} 6. c3 {[%clk 0:02:59.4]} 6...
Bd6 {[%clk 0:02:53.5]} 7. Bd3 {[%clk 0:03:00.2]} 7... O-O {[%clk 0:02:54]} 8.
Qc2 {[%clk 0:03:00.9]} 8... h5 {[%clk 0:02:51.5]} 9. Ne2 {[%clk 0:03:00.5]} 9...
Re8 {[%clk 0:02:43.8]} 10. Be3 {[%clk 0:03:01]} 10... Nd7 {[%clk 0:02:38.2]} 11.
O-O-O {[%clk 0:03:01.5]} 11... b5 {[%clk 0:02:37.7]} 12. d5 {[%clk 0:03:00.5]}
12... cxd5 {[%clk 0:02:15.6]} 13. Bxb5 {[%clk 0:02:59.3]} 13... Bb7 {[%clk
0:02:00]} 14. Kb1 {[%clk 0:02:51.4]} 14... Qa5 {[%clk 0:01:55.4]} 15. Bxd7
{[%clk 0:02:49.3]} 15... Re7 {[%clk 0:01:46.5]} 16. Bf5 {[%clk 0:02:45.7]} 16...
g6 {[%clk 0:01:36.5]} 17. Bd3 {[%clk 0:02:43.8]} 17... Qc7 {[%clk 0:01:28]} 18.
Nd4 {[%clk 0:02:42]} 18... a6 {[%clk 0:01:23.4]} 19. h3 {[%clk 0:02:39]} 19...
f5 {[%clk 0:01:20.9]} 20. g4 {[%clk 0:02:27.4]} 20... f4 {[%clk 0:01:16.5]} 21.
Bc1 {[%clk 0:02:27.1]} 21... h4 {[%clk 0:01:08]} 22. Rhe1 {[%clk 0:02:22.6]}
22... Rae8 {[%clk 0:01:03.3]} 23. Rxe7 {[%clk 0:02:17.5]} 23... Rxe7 {[%clk
0:01:00.3]} 24. f3 {[%clk 0:02:17.7]} 24... Be5 {[%clk 0:00:51]} 25. Qf2 {[%clk
0:02:13.5]} 25... a5 {[%clk 0:00:47.5]} 26. Nb5 {[%clk 0:02:06.2]} 26... Qc6
{[%clk 0:00:42.8]} 27. Qxh4 {[%clk 0:02:05.7]} 27... Re8 {[%clk 0:00:35.2]} 28.
g5 {[%clk 0:01:56.3]} 28... d4 {[%clk 0:00:34.4]} 29. Nxd4 {[%clk 0:01:50.3]}
29... Bxd4 {[%clk 0:00:34]} 30. cxd4 {[%clk 0:01:50.3]} 30... Qxf3 {[%clk
0:00:33.9]} 31. Bc2 {[%clk 0:01:11.8]} 31... Be4 {[%clk 0:00:25.7]} 32. Bxe4
{[%clk 0:01:11.2]} 32... Qxd1 {[%clk 0:00:25.4]} 33. Qxf4 {[%clk 0:01:11.6]}
33... Qxd4 {[%clk 0:00:19.3]} 34. Bc2 {[%clk 0:01:05]} 34... Qg1 {[%clk
0:00:17.5]} 35. Bb3 {[%clk 0:01:01.5]} 35... Re7 {[%clk 0:00:06.2]} 36. a3
{[%clk 0:00:49.8]} 36... a4 {[%clk 0:00:04.1]} 37. Bxa4 {[%clk 0:00:42.3]} 37...
Re1 {[%clk 0:00:01.8]} 38. Bb3 {[%clk 0:00:40.5]} 38... Qa7 {[%clk 0:00:02.3]}
39. Qf6 {[%clk 0:00:33.1]} 39... Qc7 {[%clk 0:00:01.2]} 40. Qxg6+ {[%clk
0:00:32.8]} 40... Kf8 {[%clk 0:00:01.1]} 41. Qc2 {[%clk 0:00:29.6]} 1-0

[Event "Late-Titled-Tuesday-Blitz-February-13-2024"]
[Site "Chess.com"]
[Date "2024.02.13"]
[Round "11"]
[White "tteshan"]
[Black "AlexeiShirov"]
[Result "0-1"]
[WhiteElo "2633"]
[BlackElo "2851"]
[TimeControl "180+1"]
[EndTime "16:05:13 PST"]
[Termination "AlexeiShirov won on time"]

1. Nf3 {[%clk 0:03:00.9]} 1... d5 {[%clk 0:02:58.8]} 2. g3 {[%clk 0:03:00.3]}
2... Nf6 {[%clk 0:02:58.4]} 3. Bg2 {[%clk 0:03:00.3]} 3... Bg4 {[%clk
0:02:58.4]} 4. O-O {[%clk 0:03:00]} 4... Nbd7 {[%clk 0:02:57.5]} 5. d4 {[%clk
0:02:59.5]} 5... e6 {[%clk 0:02:53.3]} 6. Bf4 {[%clk 0:02:58.4]} 6... c5 {[%clk
0:02:51.5]} 7. Nc3 {[%clk 0:02:56]} 7... cxd4 {[%clk 0:02:49.7]} 8. Qxd4 {[%clk
0:02:33.7]} 8... Bc5 {[%clk 0:02:48.6]} 9. Qa4 {[%clk 0:02:33.1]} 9... O-O
{[%clk 0:02:44.7]} 10. Ne5 {[%clk 0:02:24.7]} 10... Nb6 {[%clk 0:02:33.6]} 11.
Qb5 {[%clk 0:02:18.3]} 11... Rc8 {[%clk 0:02:31.3]} 12. Nxg4 {[%clk 0:02:15.1]}
12... Nxg4 {[%clk 0:02:30.6]} 13. h3 {[%clk 0:02:10.5]} 13... a6 {[%clk
0:02:21.8]} 14. Qd3 {[%clk 0:02:09.8]} 14... Nf6 {[%clk 0:02:11.9]} 15. e4
{[%clk 0:01:53.7]} 15... d4 {[%clk 0:02:11.2]} 16. Ne2 {[%clk 0:01:47.1]} 16...
Nfd7 {[%clk 0:02:10.8]} 17. e5 {[%clk 0:01:44.2]} 17... g5 {[%clk 0:02:10]} 18.
Bd2 {[%clk 0:01:39]} 18... Nxe5 {[%clk 0:02:09.7]} 19. Qe4 {[%clk 0:01:38.6]}
19... Nbc4 {[%clk 0:02:09.1]} 20. Bc1 {[%clk 0:01:33.9]} 20... b5 {[%clk
0:01:51.4]} 21. b3 {[%clk 0:01:22.4]} 21... f5 {[%clk 0:01:45.2]} 22. Qb7 {[%clk
0:01:21.2]} 22... Rb8 {[%clk 0:01:44.7]} 23. Qxa6 {[%clk 0:01:13.3]} 23... Rb6
{[%clk 0:01:44.7]} 24. Qa7 {[%clk 0:00:52.4]} 24... Rc6 {[%clk 0:01:35.4]} 25.
Qb7 {[%clk 0:00:44.2]} 25... Nd6 {[%clk 0:01:34.2]} 26. Qxc6 {[%clk 0:00:32.8]}
26... Nxc6 {[%clk 0:01:33.3]} 27. Bxc6 {[%clk 0:00:33.7]} 27... Qf6 {[%clk
0:01:31.2]} 28. Bb2 {[%clk 0:00:29.1]} 28... Rc8 {[%clk 0:01:23.7]} 29. Bh1
{[%clk 0:00:20.5]} 29... e5 {[%clk 0:01:23.3]} 30. Rad1 {[%clk 0:00:16.1]} 30...
b4 {[%clk 0:01:16.2]} 31. Nc1 {[%clk 0:00:09]} 31... Nb5 {[%clk 0:01:13.4]} 32.
Nd3 {[%clk 0:00:06.8]} 32... Bd6 {[%clk 0:01:11.6]} 33. Rd2 {[%clk 0:00:06.5]}
33... Nc3 {[%clk 0:01:10.4]} 34. Re1 {[%clk 0:00:06.4]} 34... e4 {[%clk
0:01:10]} 35. Nc1 {[%clk 0:00:06]} 35... Bc5 {[%clk 0:01:06]} 36. Kh2 {[%clk
0:00:05]} 36... h5 {[%clk 0:00:52.3]} 37. Bxc3 {[%clk 0:00:05.1]} 37... bxc3
{[%clk 0:00:51.4]} 38. Rde2 {[%clk 0:00:05.4]} 38... h4 {[%clk 0:00:47.1]} 39.
g4 {[%clk 0:00:05.2]} 39... Qe5+ {[%clk 0:00:45.7]} 40. Kg1 {[%clk 0:00:05.1]}
40... Bd6 {[%clk 0:00:37.9]} 41. f3 {[%clk 0:00:05.4]} 41... Qg3+ {[%clk
0:00:36.1]} 42. Kf1 {[%clk 0:00:04.8]} 42... exf3 {[%clk 0:00:34.9]} 43. Re8+
{[%clk 0:00:03.9]} 43... Rxe8 {[%clk 0:00:34.1]} 44. Rxe8+ {[%clk 0:00:04.8]}
44... Kf7 {[%clk 0:00:34.1]} 45. Rd8 {[%clk 0:00:01.8]} 45... Qxh3+ {[%clk
0:00:32.9]} 0-1

[Event "Late-Titled-Tuesday-Blitz-February-13-2024"]
[Site "Chess.com"]
[Date "2024.02.13"]
[Round "11"]
[White "CFalcons8"]
[Black "C_K_G"]
[Result "1-0"]
[WhiteElo "2437"]
[BlackElo "2180"]
[TimeControl "180+1"]
[EndTime "16:05:14 PST"]
[Termination "CFalcons8 won on time"]

1. e4 {[%clk 0:02:59.7]} 1... c5 {[%clk 0:03:00.4]} 2. Nf3 {[%clk 0:02:59.3]}
2... d6 {[%clk 0:03:00.8]} 3. d4 {[%clk 0:03:00]} 3... cxd4 {[%clk 0:03:01.4]}
4. Nxd4 {[%clk 0:03:00.9]} 4... Nf6 {[%clk 0:03:01.9]} 5. Nc3 {[%clk 0:03:01.6]}
5... a6 {[%clk 0:03:02.4]} 6. f3 {[%clk 0:03:01.3]} 6... e6 {[%clk 0:02:59.8]}
7. Be3 {[%clk 0:02:56]} 7... Be7 {[%clk 0:02:58.7]} 8. Qd2 {[%clk 0:02:55.8]}
8... Qc7 {[%clk 0:02:58.8]} 9. g4 {[%clk 0:02:51.6]} 9... Nbd7 {[%clk
0:02:59.7]} 10. g5 {[%clk 0:02:47.1]} 10... O-O {[%clk 0:03:00.4]} 11. gxf6
{[%clk 0:02:47.1]} 11... Bxf6 {[%clk 0:03:00.9]} 12. h4 {[%clk 0:02:45.9]} 12...
b5 {[%clk 0:02:59.3]} 13. h5 {[%clk 0:02:44.7]} 13... Bb7 {[%clk 0:02:55.6]} 14.
Bh3 {[%clk 0:02:43.9]} 14... b4 {[%clk 0:02:53.4]} 15. Nce2 {[%clk 0:02:42]}
15... Ne5 {[%clk 0:02:49.9]} 16. b3 {[%clk 0:02:38.5]} 16... a5 {[%clk
0:02:44.4]} 17. O-O-O {[%clk 0:02:37.3]} 17... a4 {[%clk 0:02:35.1]} 18. Kb1
{[%clk 0:02:37]} 18... Ba6 {[%clk 0:02:24.8]} 19. f4 {[%clk 0:02:32.8]} 19...
Nd7 {[%clk 0:02:11.9]} 20. Qxb4 {[%clk 0:02:13.8]} 20... Bxe2 {[%clk 0:02:03.8]}
21. Nxe2 {[%clk 0:02:13.9]} 21... axb3 {[%clk 0:01:47.3]} 22. cxb3 {[%clk
0:01:54.2]} 22... Rxa2 {[%clk 0:01:25.7]} 23. Qc4 {[%clk 0:01:37]} 23... Qa5
{[%clk 0:01:16.8]} 24. Bd4 {[%clk 0:01:24.7]} 24... Bxd4 {[%clk 0:01:10.5]} 25.
Nxd4 {[%clk 0:01:25.6]} 25... Nc5 {[%clk 0:00:52.3]} 26. Nc2 {[%clk 0:01:05.4]}
26... Rb8 {[%clk 0:00:45.8]} 27. b4 {[%clk 0:00:59.4]} 27... Rxc2 {[%clk
0:00:29.8]} 28. Qxc2 {[%clk 0:00:40.1]} 28... Qxb4+ {[%clk 0:00:25]} 29. Kc1
{[%clk 0:00:37.6]} 29... Nb3+ {[%clk 0:00:24.6]} 30. Qxb3 {[%clk 0:00:35.4]}
30... Qxb3 {[%clk 0:00:22.3]} 31. Kd2 {[%clk 0:00:34.9]} 31... Qb2+ {[%clk
0:00:16.9]} 32. Ke3 {[%clk 0:00:35.1]} 32... Rb3+ {[%clk 0:00:15.6]} 33. Rd3
{[%clk 0:00:34.7]} 33... Rxd3+ {[%clk 0:00:13.2]} 34. Kxd3 {[%clk 0:00:35.6]}
34... h6 {[%clk 0:00:09.3]} 35. f5 {[%clk 0:00:27]} 35... e5 {[%clk 0:00:04.2]}
36. Ke3 {[%clk 0:00:27.7]} 36... Qc3+ {[%clk 0:00:01.3]} 37. Kf2 {[%clk
0:00:27.6]} 1-0